[Event "Titled Tuesday Blitz September 14 2021"]
[White "Wachinger, Guenther"]
[Black "Demchenko, Anton"]
[WhiteFideId "4604261"]
[BlackFideId "4160258"]
[WhiteElo "2212"]
[BlackElo "2583"]
[Result "0-1"]
[Round "01"]
[TimeControl "180+1"]
[Date "2021.09.15"]
[WhiteClock "0:00:08"]
[BlackClock "0:00:47"]

1. e4 {[%clk 0:02:54]}  d5 {[%clk 0:02:59]} 2. exd5 {[%clk 0:02:53]}  Qxd5 {[%clk 0:02:59]} 3. Nc3 {[%clk 0:02:53]}  Qa5 {[%clk 0:02:59]} 4. Bc4 {[%clk 0:02:53]}  c6 {[%clk 0:02:59]} 5. d4 {[%clk 0:02:50]}  Bf5 {[%clk 0:02:58]} 6. Nf3 {[%clk 0:02:49]}  e6 {[%clk 0:02:58]} 7. Bf4 {[%clk 0:02:39]}  Nd7 {[%clk 0:02:57]} 8. O-O {[%clk 0:02:33]}  Ngf6 {[%clk 0:02:56]} 9. a3 {[%clk 0:02:31]}  Be7 {[%clk 0:02:55]} 10. Qd2 {[%clk 0:02:25]}  Qd8 {[%clk 0:02:51]} 11. Rfe1 {[%clk 0:02:24]}  O-O {[%clk 0:02:51]} 12. Rad1 {[%clk 0:02:23]}  Nd5 {[%clk 0:02:41]} 13. Nxd5 {[%clk 0:02:20]}  cxd5 {[%clk 0:02:40]} 14. Bd3 {[%clk 0:02:20]}  Bxd3 {[%clk 0:02:37]} 15. Qxd3 {[%clk 0:02:21]}  Rc8 {[%clk 0:02:37]} 16. Ne5 {[%clk 0:02:11]}  Nxe5 {[%clk 0:02:37]} 17. Bxe5 {[%clk 0:02:11]}  Bd6 {[%clk 0:02:34]} 18. Re3 {[%clk 0:01:37]}  Bxe5 {[%clk 0:02:26]} 19. dxe5 {[%clk 0:01:38]}  Qg5 {[%clk 0:02:16]} 20. g3 {[%clk 0:01:32]}  Rc6 {[%clk 0:02:12]} 21. f4 {[%clk 0:01:28]}  Qg4 {[%clk 0:02:09]} 22. Qe2 {[%clk 0:01:28]}  Qxe2 {[%clk 0:01:57]} 23. Rxe2 {[%clk 0:01:28]}  Rfc8 {[%clk 0:01:58]} 24. c3 {[%clk 0:01:27]}  Rc4 {[%clk 0:01:55]} 25. Kf2 {[%clk 0:01:26]}  Kf8 {[%clk 0:01:53]} 26. Ke3 {[%clk 0:01:24]}  b5 {[%clk 0:01:52]} 27. Rd4 {[%clk 0:01:24]}  R4c7 {[%clk 0:01:39]} 28. Kd3 {[%clk 0:01:14]}  Ke7 {[%clk 0:01:36]} 29. Re1 {[%clk 0:01:11]}  g6 {[%clk 0:01:33]} 30. a4 {[%clk 0:01:08]}  Rb8 {[%clk 0:01:23]} 31. Ra1 {[%clk 0:00:42]}  bxa4 {[%clk 0:01:19]} 32. Rdxa4 {[%clk 0:00:43]}  Rxb2 {[%clk 0:01:18]} 33. Rxa7 {[%clk 0:00:43]}  Rxa7 {[%clk 0:01:18]} 34. Rxa7+ {[%clk 0:00:43]}  Kf8 {[%clk 0:01:19]} 35. c4 {[%clk 0:00:19]}  dxc4+ {[%clk 0:01:17]} 36. Kxc4 {[%clk 0:00:20]}  Rxh2 {[%clk 0:01:17]} 37. Ra3 {[%clk 0:00:19]}  Rd2 {[%clk 0:01:15]} 38. Rd3 {[%clk 0:00:17]}  Rxd3 {[%clk 0:01:15]} 39. Kxd3 {[%clk 0:00:18]}  Ke7 {[%clk 0:01:10]} 40. Kd4 {[%clk 0:00:15]}  Kd7 {[%clk 0:01:11]} 41. Kc5 {[%clk 0:00:14]}  Kc7 {[%clk 0:01:11]} 42. Kb5 {[%clk 0:00:14]}  h6 {[%clk 0:01:03]} 43. Kc5 {[%clk 0:00:14]}  Kd7 {[%clk 0:01:02]} 44. Kb5 {[%clk 0:00:13]}  Ke7 {[%clk 0:01:00]} 45. Kc5 {[%clk 0:00:14]}  f5 {[%clk 0:00:58]} 46. Kd4 {[%clk 0:00:10]}  Kd7 {[%clk 0:00:58]} 47. Kc5 {[%clk 0:00:09]}  Kc7 {[%clk 0:00:58]} 48. Kb5 {[%clk 0:00:09]}  g5 {[%clk 0:00:58]} 49. fxg5 {[%clk 0:00:07]}  hxg5 {[%clk 0:00:58]} 50. Kc5 {[%clk 0:00:07]}  Kd7 {[%clk 0:00:55]} 51. Kb5 {[%clk 0:00:07]}  Ke7 {[%clk 0:00:55]} 52. Kc5 {[%clk 0:00:07]}  Kf7 {[%clk 0:00:55]} 53. Kd4 {[%clk 0:00:07]}  Kg6 {[%clk 0:00:55]} 54. Ke3 {[%clk 0:00:08]}  Kh6 {[%clk 0:00:55]} 55. Kf2 {[%clk 0:00:08]}  g4 {[%clk 0:00:46]} 56. Ke2 {[%clk 0:00:07]}  Kg5 {[%clk 0:00:46]} 57. Ke3 {[%clk 0:00:08]}  f4+ {[%clk 0:00:47]} 58. gxf4+ {[%clk 0:00:08]}  Kf5 {[%clk 0:00:47]} 0-1


[Site "https://www.chess.com"]

[Event "Titled Tuesday Blitz September 14 2021"]
[White "Zhigalko, Sergei"]
[Black "Batsiashvili, Nino"]
[WhiteFideId "13502956"]
[BlackFideId "13602993"]
[WhiteElo "2662"]
[BlackElo "2286"]
[Result "1-0"]
[Round "01"]
[TimeControl "180+1"]
[Date "2021.09.15"]
[WhiteClock "0:02:06"]
[BlackClock "0:00:56"]

1. e4 {[%clk 0:02:59]}  e5 {[%clk 0:02:55]} 2. Nf3 {[%clk 0:02:58]}  Nc6 {[%clk 0:02:55]} 3. Bc4 {[%clk 0:02:52]}  Bc5 {[%clk 0:02:54]} 4. b4 {[%clk 0:02:50]}  Bxb4 {[%clk 0:02:50]} 5. c3 {[%clk 0:02:50]}  Bd6 {[%clk 0:02:30]} 6. d4 {[%clk 0:02:49]}  Nf6 {[%clk 0:02:21]} 7. O-O {[%clk 0:02:47]}  O-O {[%clk 0:02:08]} 8. Re1 {[%clk 0:02:47]}  Qe7 {[%clk 0:02:02]} 9. Nh4 {[%clk 0:02:25]}  b6 {[%clk 0:01:35]} 10. Nf5 {[%clk 0:02:24]}  Qe8 {[%clk 0:01:35]} 11. Qf3 {[%clk 0:02:13]}  Bb7 {[%clk 0:01:33]} 12. Nxg7 {[%clk 0:02:07]}  Kxg7 {[%clk 0:00:55]} 13. Bh6+ {[%clk 0:02:06]}  Kxh6 {[%clk 0:00:55]} 14. Qxf6+ {[%clk 0:02:05]}  Kh5 {[%clk 0:00:56]} 15. Be2# {[%clk 0:02:06]} 1-0


[Site "https://www.chess.com"]

[Event "Titled Tuesday Blitz September 14 2021"]
[White "Bortnyk, Olexandr"]
[Black "Przybylski, Wojciech"]
[WhiteFideId "14120828"]
[BlackFideId "1117599"]
[WhiteElo "2723"]
[BlackElo "2285"]
[Result "1/2-1/2"]
[Round "02"]
[TimeControl "180+1"]
[Date "2021.09.15"]
[WhiteClock "0:00:05"]
[BlackClock "0:00:08"]

1. e4 {[%clk 0:03:00]}  e5 {[%clk 0:02:58]} 2. Bc4 {[%clk 0:02:59]}  Nf6 {[%clk 0:02:58]} 3. d3 {[%clk 0:02:59]}  c6 {[%clk 0:02:56]} 4. Nf3 {[%clk 0:02:59]}  Be7 {[%clk 0:02:51]} 5. O-O {[%clk 0:02:54]}  d6 {[%clk 0:02:50]} 6. c3 {[%clk 0:02:48]}  O-O {[%clk 0:02:45]} 7. Re1 {[%clk 0:02:47]}  b5 {[%clk 0:02:43]} 8. Bb3 {[%clk 0:02:47]}  Bb7 {[%clk 0:02:41]} 9. d4 {[%clk 0:02:41]}  Nbd7 {[%clk 0:02:40]} 10. Bg5 {[%clk 0:02:39]}  Qc7 {[%clk 0:02:36]} 11. Nbd2 {[%clk 0:02:37]}  Rfe8 {[%clk 0:02:32]} 12. a4 {[%clk 0:02:32]}  a6 {[%clk 0:02:31]} 13. a5 {[%clk 0:02:00]}  Bf8 {[%clk 0:02:29]} 14. Nf1 {[%clk 0:01:55]}  h6 {[%clk 0:02:25]} 15. Bxf6 {[%clk 0:01:27]}  Nxf6 {[%clk 0:02:25]} 16. Ng3 {[%clk 0:01:28]}  exd4 {[%clk 0:02:17]} 17. cxd4 {[%clk 0:01:26]}  c5 {[%clk 0:02:13]} 18. e5 {[%clk 0:01:24]}  dxe5 {[%clk 0:01:41]} 19. dxe5 {[%clk 0:01:16]}  Rad8 {[%clk 0:01:40]} 20. Qc2 {[%clk 0:01:05]}  Nd5 {[%clk 0:01:34]} 21. Qf5 {[%clk 0:00:55]}  c4 {[%clk 0:01:26]} 22. Bc2 {[%clk 0:00:54]}  g6 {[%clk 0:01:26]} 23. Qg4 {[%clk 0:00:53]}  Nb4 {[%clk 0:01:20]} 24. Be4 {[%clk 0:00:47]}  Bc8 {[%clk 0:01:15]} 25. Qh4 {[%clk 0:00:38]}  Nd3 {[%clk 0:01:13]} 26. Bxd3 {[%clk 0:00:38]}  Rxd3 {[%clk 0:01:00]} 27. Ne4 {[%clk 0:00:38]}  Red8 {[%clk 0:00:37]} 28. Nf6+ {[%clk 0:00:35]}  Kh8 {[%clk 0:00:37]} 29. h3 {[%clk 0:00:33]}  Bg7 {[%clk 0:00:35]} 30. Ng5 {[%clk 0:00:19]}  R8d4 {[%clk 0:00:28]} 31. g4 {[%clk 0:00:17]}  Qe7 {[%clk 0:00:21]} 32. Re2 {[%clk 0:00:15]}  b4 {[%clk 0:00:20]} 33. Rae1 {[%clk 0:00:14]}  Be6 {[%clk 0:00:16]} 34. Re3 {[%clk 0:00:07]}  Rxe3 {[%clk 0:00:11]} 35. Rxe3 {[%clk 0:00:08]}  Rd2 {[%clk 0:00:10]} 36. Nxe6 {[%clk 0:00:08]}  Qxe6 {[%clk 0:00:09]} 37. g5 {[%clk 0:00:09]}  h5 {[%clk 0:00:04]} 38. Qe4 {[%clk 0:00:09]}  Bxf6 {[%clk 0:00:03]} 39. exf6 {[%clk 0:00:09]}  Qxe4 {[%clk 0:00:03]} 40. Rxe4 {[%clk 0:00:10]}  Rxb2 {[%clk 0:00:03]} 41. Rxc4 {[%clk 0:00:10]}  b3 {[%clk 0:00:04]} 42. Rc8+ {[%clk 0:00:11]}  Kh7 {[%clk 0:00:04]} 43. Rf8 {[%clk 0:00:11]}  Ra2 {[%clk 0:00:04]} 44. Rxf7+ {[%clk 0:00:12]}  Kg8 {[%clk 0:00:04]} 45. Rb7 {[%clk 0:00:13]}  Rxa5 {[%clk 0:00:04]} 46. Rxb3 {[%clk 0:00:13]}  Rxg5+ {[%clk 0:00:04]} 47. Kf1 {[%clk 0:00:13]}  Rf5 {[%clk 0:00:04]} 48. Rb6 {[%clk 0:00:13]}  Kf7 {[%clk 0:00:04]} 49. Rxa6 {[%clk 0:00:13]}  Rxf6 {[%clk 0:00:05]} 50. Ra7+ {[%clk 0:00:14]}  Ke6 {[%clk 0:00:05]} 51. Kg2 {[%clk 0:00:15]}  Kf5 {[%clk 0:00:05]} 52. Kg3 {[%clk 0:00:14]}  g5 {[%clk 0:00:05]} 53. Rg7 {[%clk 0:00:13]}  h4+ {[%clk 0:00:05]} 54. Kf3 {[%clk 0:00:13]}  Rd6 {[%clk 0:00:05]} 55. Rf7+ {[%clk 0:00:10]}  Kg6 {[%clk 0:00:05]} 56. Re7 {[%clk 0:00:10]}  Rf6+ {[%clk 0:00:05]} 57. Kg2 {[%clk 0:00:10]}  Ra6 {[%clk 0:00:05]} 58. Re5 {[%clk 0:00:09]}  Rf6 {[%clk 0:00:05]} 59. Rb5 {[%clk 0:00:08]}  Rf7 {[%clk 0:00:05]} 60. Rb8 {[%clk 0:00:07]}  Rf6 {[%clk 0:00:05]} 61. Rg8+ {[%clk 0:00:07]}  Kh5 {[%clk 0:00:05]} 62. Rg7 {[%clk 0:00:06]}  Rf5 {[%clk 0:00:06]} 63. Re7 {[%clk 0:00:05]}  Rf6 {[%clk 0:00:06]} 64. Re5 {[%clk 0:00:05]}  Kg6 {[%clk 0:00:06]} 65. Re4 {[%clk 0:00:05]}  Rf5 {[%clk 0:00:06]} 66. Rd4 {[%clk 0:00:04]}  Rf6 {[%clk 0:00:06]} 67. Rd3 {[%clk 0:00:04]}  Rf5 {[%clk 0:00:06]} 68. Kf1 {[%clk 0:00:05]}  Re5 {[%clk 0:00:06]} 69. Rd6+ {[%clk 0:00:04]}  Kf5 {[%clk 0:00:06]} 70. Rb6 {[%clk 0:00:03]}  Rd5 {[%clk 0:00:06]} 71. Ke2 {[%clk 0:00:03]}  Rc5 {[%clk 0:00:07]} 72. Rb3 {[%clk 0:00:03]}  Ra5 {[%clk 0:00:07]} 73. Kf3 {[%clk 0:00:03]}  Re5 {[%clk 0:00:06]} 74. Rb8 {[%clk 0:00:03]}  Rd5 {[%clk 0:00:07]} 75. Rf8+ {[%clk 0:00:03]}  Kg6 {[%clk 0:00:07]} 76. Rg8+ {[%clk 0:00:02]}  Kf5 {[%clk 0:00:07]} 77. Rf8+ {[%clk 0:00:03]}  Kg6 {[%clk 0:00:08]} 78. Re8 {[%clk 0:00:04]}  Rd3+ {[%clk 0:00:07]} 79. Re3 {[%clk 0:00:04]}  Rd4 {[%clk 0:00:07]} 80. Re5 {[%clk 0:00:03]}  Rf4+ {[%clk 0:00:07]} 81. Kg2 {[%clk 0:00:03]}  Kf6 {[%clk 0:00:07]} 82. Rc5 {[%clk 0:00:03]}  Rd4 {[%clk 0:00:07]} 83. Rc6+ {[%clk 0:00:03]}  Kf5 {[%clk 0:00:08]} 84. Rc5+ {[%clk 0:00:03]}  Kf4 {[%clk 0:00:08]} 85. Rc3 {[%clk 0:00:03]}  Ra4 {[%clk 0:00:08]} 86. Rf3+ {[%clk 0:00:03]}  Ke5 {[%clk 0:00:08]} 87. Rf8 {[%clk 0:00:04]}  Ra3 {[%clk 0:00:08]} 88. Rf7 {[%clk 0:00:04]}  Rb3 {[%clk 0:00:08]} 89. Rf8 {[%clk 0:00:04]}  Rc3 {[%clk 0:00:08]} 90. Re8+ {[%clk 0:00:04]}  Kf5 {[%clk 0:00:08]} 91. Ra8 {[%clk 0:00:04]}  Rb3 {[%clk 0:00:08]} 92. Ra5+ {[%clk 0:00:04]}  Kf4 {[%clk 0:00:08]} 93. Ra4+ {[%clk 0:00:04]}  Kf5 {[%clk 0:00:08]} 94. Ra2 {[%clk 0:00:05]}  Rc3 {[%clk 0:00:08]} 95. Re2 {[%clk 0:00:05]}  Rc4 {[%clk 0:00:08]} 96. Re3 {[%clk 0:00:05]}  Rf4 {[%clk 0:00:08]} 97. Re8 {[%clk 0:00:05]}  Ra4 {[%clk 0:00:08]} 98. Rf8+ {[%clk 0:00:05]}  Kg6 {[%clk 0:00:08]} 99. Rg8+ {[%clk 0:00:05]}  Kf5 {[%clk 0:00:08]} 100. Rc8 {[%clk 0:00:05]}  Ra5 {[%clk 0:00:08]} 101. Rc3 {[%clk 0:00:05]}  Ra4 {[%clk 0:00:08]} 102. Kf3 {[%clk 0:00:05]}  Rf4+ {[%clk 0:00:07]} 103. Ke3 {[%clk 0:00:05]}  Re4+ {[%clk 0:00:08]} 1/2-1/2


[Site "https://www.chess.com"]

[Event "Titled Tuesday Blitz September 14 2021"]
[White "Deac, Bogdan-Daniel"]
[Black "deribas12345"]
[WhiteFideId "1226380"]
[WhiteElo "2605"]
[BlackElo "2604"]
[Result "1-0"]
[Round "02"]
[TimeControl "180+1"]
[Date "2021.09.15"]
[WhiteClock "0:01:08"]
[BlackClock "0:01:03"]

1. e4 {[%clk 0:03:00]}  e6 {[%clk 0:02:59]} 2. d4 {[%clk 0:02:57]}  d5 {[%clk 0:03:00]} 3. Nc3 {[%clk 0:02:55]}  Nf6 {[%clk 0:02:59]} 4. e5 {[%clk 0:02:54]}  Ne4 {[%clk 0:02:58]} 5. Nxe4 {[%clk 0:02:42]}  dxe4 {[%clk 0:02:59]} 6. Be3 {[%clk 0:02:42]}  c5 {[%clk 0:02:58]} 7. dxc5 {[%clk 0:02:41]}  Nd7 {[%clk 0:02:58]} 8. Qg4 {[%clk 0:02:27]}  Nxc5 {[%clk 0:02:57]} 9. Ne2 {[%clk 0:02:01]}  Qa5+ {[%clk 0:02:21]} 10. Nc3 {[%clk 0:01:56]}  Bd7 {[%clk 0:02:09]} 11. O-O-O {[%clk 0:01:51]}  O-O-O {[%clk 0:02:06]} 12. Qf4 {[%clk 0:01:41]}  Na4 {[%clk 0:01:58]} 13. Nxa4 {[%clk 0:01:32]}  Qxa4 {[%clk 0:01:53]} 14. Kb1 {[%clk 0:01:32]}  Bb4 {[%clk 0:01:22]} 15. Qxf7 {[%clk 0:01:11]}  Qxc2+ {[%clk 0:01:03]} 16. Kxc2 {[%clk 0:01:08]}  Ba4+ {[%clk 0:01:03]} 17. b3 {[%clk 0:01:08]} 1-0


[Site "https://www.chess.com"]

[Event "Titled Tuesday Blitz September 14 2021"]
[White "Espinosa Veloz, Ermes"]
[Black "Svane, Rasmus"]
[WhiteFideId "3507424"]
[BlackFideId "4657101"]
[WhiteElo "2333"]
[BlackElo "2643"]
[Result "0-1"]
[Round "02"]
[TimeControl "180+1"]
[Date "2021.09.15"]
[WhiteClock "0:00:01"]
[BlackClock "0:00:12"]

1. e4 {[%clk 0:03:00]}  c6 {[%clk 0:02:59]} 2. d4 {[%clk 0:03:00]}  d5 {[%clk 0:03:00]} 3. e5 {[%clk 0:03:00]}  Bf5 {[%clk 0:03:00]} 4. Nf3 {[%clk 0:03:01]}  e6 {[%clk 0:03:00]} 5. Be2 {[%clk 0:03:01]}  Ne7 {[%clk 0:02:59]} 6. O-O {[%clk 0:03:01]}  Ng6 {[%clk 0:02:59]} 7. Be3 {[%clk 0:02:56]}  f6 {[%clk 0:02:59]} 8. c4 {[%clk 0:02:54]}  Nd7 {[%clk 0:02:44]} 9. cxd5 {[%clk 0:02:34]}  exd5 {[%clk 0:02:45]} 10. Re1 {[%clk 0:02:22]}  Be7 {[%clk 0:02:40]} 11. Nc3 {[%clk 0:02:17]}  O-O {[%clk 0:02:37]} 12. exf6 {[%clk 0:02:10]}  Nxf6 {[%clk 0:02:32]} 13. Ne5 {[%clk 0:02:02]}  Ne4 {[%clk 0:02:16]} 14. Nxe4 {[%clk 0:01:29]}  Bxe4 {[%clk 0:02:17]} 15. Bg4 {[%clk 0:01:29]}  Qd6 {[%clk 0:02:01]} 16. f3 {[%clk 0:01:29]}  Bf5 {[%clk 0:02:01]} 17. Bxf5 {[%clk 0:01:29]}  Rxf5 {[%clk 0:02:02]} 18. Nxg6 {[%clk 0:01:28]}  Qxg6 {[%clk 0:02:01]} 19. Bf2 {[%clk 0:01:26]}  Bd6 {[%clk 0:01:29]} 20. Qe2 {[%clk 0:01:25]}  Bb4 {[%clk 0:01:07]} 21. Qe6+ {[%clk 0:01:24]}  Qxe6 {[%clk 0:01:06]} 22. Rxe6 {[%clk 0:01:25]}  Kf7 {[%clk 0:01:07]} 23. Re2 {[%clk 0:01:24]}  Re8 {[%clk 0:01:02]} 24. Rxe8 {[%clk 0:01:22]}  Kxe8 {[%clk 0:01:03]} 25. a3 {[%clk 0:01:21]}  Ba5 {[%clk 0:01:03]} 26. Rc1 {[%clk 0:01:15]}  Kd7 {[%clk 0:01:02]} 27. Rc2 {[%clk 0:01:14]}  Rf8 {[%clk 0:00:58]} 28. Re2 {[%clk 0:01:14]}  Bb6 {[%clk 0:00:56]} 29. Kf1 {[%clk 0:01:14]}  a5 {[%clk 0:00:52]} 30. a4 {[%clk 0:01:13]}  Bd8 {[%clk 0:00:38]} 31. b3 {[%clk 0:01:11]}  Bf6 {[%clk 0:00:37]} 32. Ke1 {[%clk 0:01:09]}  Ra8 {[%clk 0:00:26]} 33. Kd2 {[%clk 0:01:07]}  b5 {[%clk 0:00:26]} 34. Kd3 {[%clk 0:00:50]}  bxa4 {[%clk 0:00:25]} 35. bxa4 {[%clk 0:00:51]}  Rb8 {[%clk 0:00:26]} 36. Be1 {[%clk 0:00:37]}  Rb3+ {[%clk 0:00:25]} 37. Kc2 {[%clk 0:00:37]}  Ra3 {[%clk 0:00:24]} 38. Bxa5 {[%clk 0:00:35]}  Rxa4 {[%clk 0:00:19]} 39. Be1 {[%clk 0:00:32]}  Ra2+ {[%clk 0:00:19]} 40. Kd3 {[%clk 0:00:31]}  Rxe2 {[%clk 0:00:20]} 41. Kxe2 {[%clk 0:00:32]}  Bxd4 {[%clk 0:00:20]} 42. Kd3 {[%clk 0:00:32]}  c5 {[%clk 0:00:20]} 43. f4 {[%clk 0:00:31]}  Bf6 {[%clk 0:00:19]} 44. g4 {[%clk 0:00:31]}  c4+ {[%clk 0:00:19]} 45. Ke3 {[%clk 0:00:30]}  g6 {[%clk 0:00:17]} 46. Bb4 {[%clk 0:00:20]}  Ke6 {[%clk 0:00:17]} 47. Bc5 {[%clk 0:00:18]}  Bb2 {[%clk 0:00:13]} 48. Bb6 {[%clk 0:00:15]}  Bc1+ {[%clk 0:00:12]} 49. Kf3 {[%clk 0:00:14]}  Bd2 {[%clk 0:00:12]} 50. Bd4 {[%clk 0:00:11]}  Bb4 {[%clk 0:00:10]} 51. h3 {[%clk 0:00:09]}  Be7 {[%clk 0:00:10]} 52. Ke3 {[%clk 0:00:06]}  Bf6 {[%clk 0:00:10]} 53. Bb6 {[%clk 0:00:05]}  Kd6 {[%clk 0:00:10]} 54. Ba7 {[%clk 0:00:05]}  Kc6 {[%clk 0:00:08]} 55. f5 {[%clk 0:00:05]}  gxf5 {[%clk 0:00:08]} 56. gxf5 {[%clk 0:00:06]}  Be5 {[%clk 0:00:08]} 57. Bd4 {[%clk 0:00:04]}  Bxd4+ {[%clk 0:00:07]} 58. Kxd4 {[%clk 0:00:05]}  Kd6 {[%clk 0:00:08]} 59. h4 {[%clk 0:00:03]}  h5 {[%clk 0:00:08]} 60. Kc3 {[%clk 0:00:02]}  Ke5 {[%clk 0:00:08]} 61. f6 {[%clk 0:00:01]}  Kxf6 {[%clk 0:00:08]} 62. Kd4 {[%clk 0:00:02]}  Ke6 {[%clk 0:00:09]} 63. Ke3 {[%clk 0:00:02]}  Ke5 {[%clk 0:00:10]} 64. Kf3 {[%clk 0:00:02]}  d4 {[%clk 0:00:11]} 65. Ke2 {[%clk 0:00:01]}  c3 {[%clk 0:00:12]} 0-1


[Site "https://www.chess.com"]

[Event "Titled Tuesday Blitz September 14 2021"]
[White "Florescu, Codrut-Constantin"]
[Black "Sadhwani, Raunak"]
[WhiteFideId "1202200"]
[BlackFideId "35093487"]
[WhiteElo "2243"]
[BlackElo "2517"]
[Result "0-1"]
[Round "02"]
[TimeControl "180+1"]
[Date "2021.09.15"]
[WhiteClock "0:00:15"]
[BlackClock "0:00:18"]

1. d4 {[%clk 0:03:00]}  Nf6 {[%clk 0:02:58]} 2. c4 {[%clk 0:03:00]}  Nc6 {[%clk 0:02:55]} 3. Nf3 {[%clk 0:02:59]}  e6 {[%clk 0:02:55]} 4. a3 {[%clk 0:02:58]}  d6 {[%clk 0:02:54]} 5. Nc3 {[%clk 0:02:58]}  g6 {[%clk 0:02:54]} 6. e4 {[%clk 0:02:57]}  Bg7 {[%clk 0:02:54]} 7. Be2 {[%clk 0:02:57]}  O-O {[%clk 0:02:55]} 8. O-O {[%clk 0:02:56]}  e5 {[%clk 0:02:55]} 9. d5 {[%clk 0:02:56]}  Ne7 {[%clk 0:02:54]} 10. b4 {[%clk 0:02:53]}  Nd7 {[%clk 0:02:55]} 11. Nd2 {[%clk 0:02:47]}  f5 {[%clk 0:02:54]} 12. f3 {[%clk 0:02:38]}  f4 {[%clk 0:02:54]} 13. Nb3 {[%clk 0:02:37]}  g5 {[%clk 0:02:54]} 14. g4 {[%clk 0:02:36]}  h5 {[%clk 0:02:52]} 15. h3 {[%clk 0:02:36]}  Rf6 {[%clk 0:02:53]} 16. c5 {[%clk 0:02:32]}  Rh6 {[%clk 0:02:53]} 17. Kg2 {[%clk 0:02:21]}  Ng6 {[%clk 0:02:52]} 18. Rh1 {[%clk 0:02:20]}  Nh4+ {[%clk 0:02:52]} 19. Kf2 {[%clk 0:02:20]}  Nf6 {[%clk 0:02:52]} 20. Bd2 {[%clk 0:02:18]}  Bd7 {[%clk 0:02:48]} 21. Qc2 {[%clk 0:02:17]}  a6 {[%clk 0:02:48]} 22. a4 {[%clk 0:02:11]}  Kf7 {[%clk 0:02:48]} 23. b5 {[%clk 0:02:07]}  Qh8 {[%clk 0:02:40]} 24. c6 {[%clk 0:02:02]}  bxc6 {[%clk 0:02:41]} 25. dxc6 {[%clk 0:02:01]}  Be6 {[%clk 0:02:41]} 26. Nd5 {[%clk 0:01:48]}  Nxd5 {[%clk 0:02:30]} 27. exd5 {[%clk 0:01:46]}  Bxd5 {[%clk 0:02:30]} 28. Bc4 {[%clk 0:01:45]}  Bxc4 {[%clk 0:02:29]} 29. Qxc4+ {[%clk 0:01:45]}  Ke7 {[%clk 0:02:25]} 30. Bb4 {[%clk 0:01:30]}  Nxf3 {[%clk 0:02:16]} 31. Kxf3 {[%clk 0:01:28]}  hxg4+ {[%clk 0:02:16]} 32. Ke2 {[%clk 0:01:09]}  Rxh3 {[%clk 0:02:15]} 33. Rxh3 {[%clk 0:01:04]}  Qxh3 {[%clk 0:02:16]} 34. b6 {[%clk 0:00:50]}  Qe3+ {[%clk 0:02:04]} 35. Kd1 {[%clk 0:00:49]}  cxb6 {[%clk 0:00:51]} 36. Ra2 {[%clk 0:00:42]}  Qf3+ {[%clk 0:00:40]} 37. Re2 {[%clk 0:00:39]}  Rc8 {[%clk 0:00:39]} 38. c7 {[%clk 0:00:34]}  g3 {[%clk 0:00:36]} 39. Nd2 {[%clk 0:00:33]}  Qh1+ {[%clk 0:00:34]} 40. Kc2 {[%clk 0:00:27]}  f3 {[%clk 0:00:18]} 41. Re3 {[%clk 0:00:18]}  f2 {[%clk 0:00:18]} 42. Qg4 {[%clk 0:00:15]}  Rxc7+ {[%clk 0:00:17]} 43. Kb3 {[%clk 0:00:16]}  Qd5+ {[%clk 0:00:17]} 44. Nc4 {[%clk 0:00:15]}  Qxc4+ {[%clk 0:00:16]} 45. Qxc4 {[%clk 0:00:14]}  Rxc4 {[%clk 0:00:17]} 46. Kxc4 {[%clk 0:00:14]}  f1=Q+ {[%clk 0:00:17]} 47. Kd5 {[%clk 0:00:15]}  Qd1+ {[%clk 0:00:17]} 48. Ke4 {[%clk 0:00:15]}  Ke6 {[%clk 0:00:18]} 0-1


[Site "https://www.chess.com"]

[Event "Titled Tuesday Blitz September 14 2021"]
[White "Gerzhoy, Leonid"]
[Black "Bluebaum, Matthias"]
[WhiteFideId "2806126"]
[BlackFideId "24651516"]
[WhiteElo "2557"]
[BlackElo "2681"]
[Result "0-1"]
[Round "02"]
[TimeControl "180+1"]
[Date "2021.09.15"]
[WhiteClock "0:00:16"]
[BlackClock "0:01:09"]

1. d4 {[%clk 0:02:59]}  d5 {[%clk 0:02:59]} 2. c4 {[%clk 0:02:58]}  e6 {[%clk 0:03:00]} 3. Nc3 {[%clk 0:02:58]}  Nf6 {[%clk 0:03:00]} 4. Nf3 {[%clk 0:02:58]}  Nbd7 {[%clk 0:02:59]} 5. e3 {[%clk 0:02:57]}  a6 {[%clk 0:02:49]} 6. b3 {[%clk 0:02:53]}  b6 {[%clk 0:02:49]} 7. Bd3 {[%clk 0:02:52]}  Bb7 {[%clk 0:02:48]} 8. O-O {[%clk 0:02:52]}  Bd6 {[%clk 0:02:48]} 9. Bb2 {[%clk 0:02:52]}  O-O {[%clk 0:02:49]} 10. Rc1 {[%clk 0:02:50]}  Qe7 {[%clk 0:02:49]} 11. Qe2 {[%clk 0:02:38]}  dxc4 {[%clk 0:02:46]} 12. bxc4 {[%clk 0:02:37]}  c5 {[%clk 0:02:47]} 13. Rfd1 {[%clk 0:02:30]}  e5 {[%clk 0:02:45]} 14. dxe5 {[%clk 0:02:15]}  Nxe5 {[%clk 0:02:45]} 15. Nxe5 {[%clk 0:02:13]}  Qxe5 {[%clk 0:02:38]} 16. f4 {[%clk 0:02:12]}  Qe6 {[%clk 0:02:29]} 17. Nd5 {[%clk 0:02:02]}  Nxd5 {[%clk 0:01:55]} 18. cxd5 {[%clk 0:02:01]}  Bxd5 {[%clk 0:01:56]} 19. Bxh7+ {[%clk 0:01:57]}  Kxh7 {[%clk 0:01:57]} 20. Qh5+ {[%clk 0:01:56]}  Kg8 {[%clk 0:01:57]} 21. Qxd5 {[%clk 0:01:56]}  Qxe3+ {[%clk 0:01:57]} 22. Kh1 {[%clk 0:01:56]}  Bxf4 {[%clk 0:01:56]} 23. Qf5 {[%clk 0:01:19]}  Bh6 {[%clk 0:01:12]} 24. Rf1 {[%clk 0:00:35]}  Qe6 {[%clk 0:01:08]} 25. Qxe6 {[%clk 0:00:24]}  fxe6 {[%clk 0:01:09]} 26. Rce1 {[%clk 0:00:21]}  Rxf1+ {[%clk 0:01:08]} 27. Rxf1 {[%clk 0:00:21]}  Rf8 {[%clk 0:01:09]} 28. Re1 {[%clk 0:00:19]}  Bd2 {[%clk 0:01:09]} 29. Rd1 {[%clk 0:00:16]}  c4 {[%clk 0:01:09]} 0-1


[Site "https://www.chess.com"]